[Event "*** Titled Tuesday Blitz"]
[Site "Chess.com"]
[Date "2020.11.03"]
[Round "5"]
[White "Natalya_Buksa"]
[Black "Aleksandar-Topalov"]
[Result "1-0"]
[WhiteElo "2539"]
[BlackElo "2373"]
[TimeControl "180+1"]
[EndTime "10:58:59 PST"]
[Termination "Natalya_Buksa won by resignation"]

1. d4 {[%clk 0:02:56.2]} 1... Nf6 {[%clk 0:02:58.4]} 2. Nc3 {[%clk 0:02:55.6]}
2... d5 {[%clk 0:02:57.9]} 3. Bf4 {[%clk 0:02:55.1]} 3... Bf5 {[%clk 0:02:57.2]}
4. e3 {[%clk 0:02:54.9]} 4... c6 {[%clk 0:02:57]} 5. Nf3 {[%clk 0:02:55.5]} 5...
Nbd7 {[%clk 0:02:56.5]} 6. Ne5 {[%clk 0:02:55.8]} 6... e6 {[%clk 0:02:53.1]} 7.
g4 {[%clk 0:02:56.3]} 7... Be4 {[%clk 0:02:50.7]} 8. f3 {[%clk 0:02:56.1]} 8...
Bg6 {[%clk 0:02:51]} 9. h4 {[%clk 0:02:56.4]} 9... h5 {[%clk 0:02:50.1]} 10.
Nxg6 {[%clk 0:02:55.9]} 10... fxg6 {[%clk 0:02:50.4]} 11. g5 {[%clk 0:02:56.4]}
11... Ng8 {[%clk 0:02:49.8]} 12. Bd3 {[%clk 0:02:53.7]} 12... Ne7 {[%clk
0:02:49.2]} 13. Qe2 {[%clk 0:02:52.6]} 13... Qa5 {[%clk 0:02:47.5]} 14. O-O-O
{[%clk 0:02:52.4]} 14... O-O-O {[%clk 0:02:47.5]} 15. e4 {[%clk 0:02:52.5]}
15... dxe4 {[%clk 0:02:39.7]} 16. fxe4 {[%clk 0:02:52.4]} 16... e5 {[%clk
0:02:40.2]} 17. Be3 {[%clk 0:02:45.9]} 17... exd4 {[%clk 0:02:40.2]} 18. Bxd4
{[%clk 0:02:46.4]} 18... Ne5 {[%clk 0:02:40.4]} 19. Bc4 {[%clk 0:02:30.3]} 19...
Rxd4 {[%clk 0:02:03.3]} 20. Rxd4 {[%clk 0:02:29]} 20... c5 {[%clk 0:02:03.8]}
21. Rd2 {[%clk 0:02:22.6]} 21... N7c6 {[%clk 0:02:04]} 22. Be6+ {[%clk
0:02:17.4]} 22... Kc7 {[%clk 0:02:03.6]} 23. Qb5 {[%clk 0:02:08.6]} 23... a6
{[%clk 0:01:51.9]} 24. Nd5+ {[%clk 0:02:02.7]} 24... Kb8 {[%clk 0:01:51.4]} 25.
Qxa5 {[%clk 0:02:01.9]} 25... Nxa5 {[%clk 0:01:51.3]} 26. Nb6 {[%clk 0:02:02.2]}
26... Kc7 {[%clk 0:01:48.1]} 27. Nd5+ {[%clk 0:01:59.4]} 27... Kb8 {[%clk
0:01:48]} 28. b3 {[%clk 0:01:55.9]} 28... Nac6 {[%clk 0:01:46.4]} 29. Nb6 {[%clk
0:01:51.8]} 29... Kc7 {[%clk 0:01:44.4]} 30. Nd7 {[%clk 0:01:51.8]} 30... Bd6
{[%clk 0:01:41.9]} 31. Nxe5 {[%clk 0:01:51.4]} 31... Nxe5 {[%clk 0:01:37.4]} 32.
Rf1 {[%clk 0:01:51.7]} 32... b5 {[%clk 0:01:32.4]} 33. c4 {[%clk 0:01:48.5]}
33... bxc4 {[%clk 0:01:31]} 34. bxc4 {[%clk 0:01:49.4]} 34... Rb8 {[%clk
0:01:28.2]} 35. Kc2 {[%clk 0:01:49.4]} 35... Rb4 {[%clk 0:01:28]} 36. a3 {[%clk
0:01:45.3]} 36... Rb8 {[%clk 0:01:24.1]} 37. Rfd1 {[%clk 0:01:43.5]} 37... Rd8
{[%clk 0:01:15.2]} 38. Rd5 {[%clk 0:01:42.8]} 38... Nf3 {[%clk 0:01:13.1]} 39.
Bf7 {[%clk 0:01:05.6]} 39... Nd4+ {[%clk 0:01:12.7]} 40. Kb2 {[%clk 0:00:57]}
40... Rf8 {[%clk 0:01:10.2]} 41. Bxg6 {[%clk 0:00:53.8]} 41... Rf2+ {[%clk
0:01:10.2]} 42. Kb1 {[%clk 0:00:54.1]} 42... Rh2 {[%clk 0:00:56.2]} 43. e5
{[%clk 0:00:54.1]} 43... Be7 {[%clk 0:00:56.2]} 44. Be8 {[%clk 0:00:47.8]} 44...
Nc2 {[%clk 0:00:47.9]} 45. Rd7+ {[%clk 0:00:44.5]} 45... Kc8 {[%clk 0:00:47.7]}
46. Rxe7 {[%clk 0:00:34.1]} 46... Nxa3+ {[%clk 0:00:47.6]} 47. Ka1 {[%clk
0:00:34.6]} 47... Nc2+ {[%clk 0:00:48]} 48. Kb2 {[%clk 0:00:35]} 48... Ne3+
{[%clk 0:00:47.7]} 49. Kc1 {[%clk 0:00:35.3]} 49... Nxd1 {[%clk 0:00:44.9]} 50.
Kxd1 {[%clk 0:00:35.1]} 50... Kd8 {[%clk 0:00:45.4]} 51. Re6 {[%clk 0:00:35]}
51... Rxh4 {[%clk 0:00:45.7]} 52. Bg6 {[%clk 0:00:30.2]} 52... Rxc4 {[%clk
0:00:42.4]} 53. Bxh5 {[%clk 0:00:24]} 53... Rh4 {[%clk 0:00:39.4]} 54. Bg6
{[%clk 0:00:23.9]} 54... Rg4 {[%clk 0:00:39.1]} 55. Re8+ {[%clk 0:00:24]} 55...
Kd7 {[%clk 0:00:38.9]} 56. Bf5+ {[%clk 0:00:24]} 56... Kxe8 {[%clk 0:00:38.5]}
57. Bxg4 {[%clk 0:00:24.5]} 57... Kf7 {[%clk 0:00:35.3]} 58. Bf5 {[%clk
0:00:23.1]} 1-0

[Event "*** Titled Tuesday Blitz"]
[Site "Chess.com"]
[Date "2020.11.03"]
[Round "5"]
[White "tdf98pantani"]
[Black "BogdanDeac"]
[Result "1-0"]
[WhiteElo "2714"]
[BlackElo "2861"]
[TimeControl "180+1"]
[EndTime "10:59:00 PST"]
[Termination "tdf98pantani won on time"]

1. e4 {[%clk 0:03:00.9]} 1... c5 {[%clk 0:02:59.5]} 2. Nf3 {[%clk 0:03:00.9]}
2... d6 {[%clk 0:02:59.8]} 3. Bc4 {[%clk 0:02:57.1]} 3... Nf6 {[%clk 0:02:58.5]}
4. d3 {[%clk 0:02:57.4]} 4... Nc6 {[%clk 0:02:57.3]} 5. O-O {[%clk 0:02:57.2]}
5... g6 {[%clk 0:02:56.8]} 6. c3 {[%clk 0:02:56.7]} 6... Bg7 {[%clk 0:02:57]} 7.
Bb3 {[%clk 0:02:56.9]} 7... O-O {[%clk 0:02:56]} 8. a4 {[%clk 0:02:54]} 8... a6
{[%clk 0:02:48.9]} 9. h3 {[%clk 0:02:52.3]} 9... Rb8 {[%clk 0:02:44.3]} 10. Bg5
{[%clk 0:02:51.8]} 10... b5 {[%clk 0:02:38.2]} 11. axb5 {[%clk 0:02:51.3]} 11...
axb5 {[%clk 0:02:39.1]} 12. Re1 {[%clk 0:02:47.8]} 12... c4 {[%clk 0:02:26.3]}
13. Bc2 {[%clk 0:02:32.1]} 13... cxd3 {[%clk 0:02:23.8]} 14. Bxd3 {[%clk
0:02:32.3]} 14... Nd7 {[%clk 0:02:19.5]} 15. Bf1 {[%clk 0:02:21.4]} 15... b4
{[%clk 0:01:22.5]} 16. Nd4 {[%clk 0:02:20.7]} 16... Bb7 {[%clk 0:01:21]} 17. Nb5
{[%clk 0:02:05.9]} 17... Nc5 {[%clk 0:01:11.3]} 18. Nd2 {[%clk 0:01:54.5]} 18...
Ba6 {[%clk 0:00:19.5]} 19. Nd4 {[%clk 0:01:53.3]} 19... Nxd4 {[%clk 0:00:17.6]}
20. cxd4 {[%clk 0:01:52.9]} 20... Bxf1 {[%clk 0:00:15.1]} 21. dxc5 {[%clk
0:01:50.8]} 21... Bb5 {[%clk 0:00:12.8]} 22. Ra7 {[%clk 0:01:27.4]} 22... Re8
{[%clk 0:00:09.5]} 23. Qc2 {[%clk 0:01:06.2]} 23... dxc5 {[%clk 0:00:08.1]} 24.
Nc4 {[%clk 0:00:45.1]} 24... Qd4 {[%clk 0:00:06]} 25. Ne3 {[%clk 0:00:37.8]}
25... Qxb2 {[%clk 0:00:04.6]} 26. Qxc5 {[%clk 0:00:37.8]} 26... Bd4 {[%clk
0:00:04.3]} 27. Ra2 {[%clk 0:00:27.5]} 27... Qxa2 {[%clk 0:00:02.9]} 28. Qxd4
{[%clk 0:00:27.3]} 28... e5 {[%clk 0:00:02.9]} 29. Qc5 {[%clk 0:00:24.8]} 29...
Bd7 {[%clk 0:00:02.6]} 30. Nd5 {[%clk 0:00:24.8]} 30... Re6 {[%clk 0:00:02.8]}
31. Qc7 {[%clk 0:00:23.7]} 31... Rf8 {[%clk 0:00:02]} 32. Qxd7 {[%clk 0:00:22]}
32... b3 {[%clk 0:00:02.9]} 33. Bf6 {[%clk 0:00:19.4]} 33... b2 {[%clk
0:00:02.1]} 34. Qb7 {[%clk 0:00:17.6]} 34... Qa5 {[%clk 0:00:02.1]} 35. Rb1
{[%clk 0:00:16.3]} 35... Ra8 {[%clk 0:00:02]} 36. Rxb2 {[%clk 0:00:14.9]} 36...
h5 {[%clk 0:00:01.7]} 37. Ne7+ {[%clk 0:00:13.1]} 37... Kh7 {[%clk 0:00:01.2]}
38. Nc6 {[%clk 0:00:11.7]} 1-0

[Event "*** Titled Tuesday Blitz"]
[Site "Chess.com"]
[Date "2020.11.03"]
[Round "5"]
[White "vinniethepooh"]
[Black "Dr-Bassem"]
[Result "0-1"]
[WhiteElo "2583"]
[BlackElo "2802"]
[TimeControl "180+1"]
[EndTime "10:59:00 PST"]
[Termination "Dr-Bassem won on time"]

1. d4 {[%clk 0:03:00.9]} 1... e6 {[%clk 0:02:56.4]} 2. c4 {[%clk 0:03:01.1]}
2... f5 {[%clk 0:02:56.8]} 3. Nc3 {[%clk 0:03:01.5]} 3... Nf6 {[%clk 0:02:57.4]}
4. g3 {[%clk 0:03:02]} 4... Be7 {[%clk 0:02:57.3]} 5. Bg2 {[%clk 0:03:02.5]}
5... O-O {[%clk 0:02:58]} 6. Nf3 {[%clk 0:03:01.7]} 6... d6 {[%clk 0:02:58.3]}
7. O-O {[%clk 0:03:01.7]} 7... Qe8 {[%clk 0:02:59.2]} 8. Re1 {[%clk 0:02:53.3]}
8... Ne4 {[%clk 0:02:58.7]} 9. Qc2 {[%clk 0:02:26.1]} 9... Qg6 {[%clk
0:02:57.6]} 10. Be3 {[%clk 0:02:01.8]} 10... Bf6 {[%clk 0:02:52.9]} 11. Nxe4
{[%clk 0:01:59.7]} 11... fxe4 {[%clk 0:02:53.8]} 12. Nd2 {[%clk 0:02:00.6]}
12... d5 {[%clk 0:02:54.2]} 13. cxd5 {[%clk 0:02:01.1]} 13... exd5 {[%clk
0:02:55.1]} 14. Qxc7 {[%clk 0:01:51]} 14... Nc6 {[%clk 0:02:54.5]} 15. Qd6
{[%clk 0:01:45.1]} 15... Qh5 {[%clk 0:02:49.7]} 16. Qc5 {[%clk 0:01:38.9]} 16...
Be7 {[%clk 0:02:13.2]} 17. Qb5 {[%clk 0:01:30.9]} 17... a6 {[%clk 0:01:46.8]}
18. Qb3 {[%clk 0:01:24.1]} 18... Na5 {[%clk 0:01:19.1]} 19. Qd1 {[%clk
0:00:25.2]} 19... Bh3 {[%clk 0:01:09.6]} 20. Nf1 {[%clk 0:00:18.5]} 20... Nc4
{[%clk 0:01:07.7]} 21. b3 {[%clk 0:00:18.2]} 21... Nd6 {[%clk 0:01:03]} 22. Rc1
{[%clk 0:00:16.1]} 22... Bd8 {[%clk 0:00:52.1]} 23. Qd2 {[%clk 0:00:16.6]} 23...
a5 {[%clk 0:00:27.8]} 24. Rc5 {[%clk 0:00:16.7]} 24... Bb6 {[%clk 0:00:25.8]}
25. Bxh3 {[%clk 0:00:16.9]} 25... Qxh3 {[%clk 0:00:16.6]} 26. Rxd5 {[%clk
0:00:17]} 26... Nf5 {[%clk 0:00:16.3]} 27. Bf4 {[%clk 0:00:12.4]} 27... Rad8
{[%clk 0:00:13.9]} 28. Rxd8 {[%clk 0:00:06.6]} 28... Rxd8 {[%clk 0:00:14.8]} 29.
e3 {[%clk 0:00:07]} 29... Qg4 {[%clk 0:00:11.3]} 30. Qe2 {[%clk 0:00:06.8]}
30... Qh3 {[%clk 0:00:11.2]} 31. Nd2 {[%clk 0:00:05.9]} 31... Kh8 {[%clk
0:00:10.3]} 32. Nxe4 {[%clk 0:00:05.9]} 32... Re8 {[%clk 0:00:09.5]} 33. Ng5
{[%clk 0:00:06.2]} 33... Nxd4 {[%clk 0:00:04.7]} 0-1

[Event "*** Titled Tuesday Blitz"]
[Site "Chess.com"]
[Date "2020.11.03"]
[Round "5"]
[White "MaxLeto"]
[Black "UCantHandleDenker"]
[Result "0-1"]
[WhiteElo "2356"]
[BlackElo "2504"]
[TimeControl "180+1"]
[EndTime "10:59:03 PST"]
[Termination "UCantHandleDenker won by checkmate"]

1. g4 {[%clk 0:03:00.9]} 1... d6 {[%clk 0:02:58.9]} 2. Bg2 {[%clk 0:02:58.8]}
2... c6 {[%clk 0:02:57.4]} 3. g5 {[%clk 0:02:58.3]} 3... e5 {[%clk 0:02:54.9]}
4. d4 {[%clk 0:02:56.9]} 4... Nd7 {[%clk 0:02:51.7]} 5. Nc3 {[%clk 0:02:52.3]}
5... h6 {[%clk 0:02:51.1]} 6. h4 {[%clk 0:02:47.5]} 6... hxg5 {[%clk 0:02:50.2]}
7. Bxg5 {[%clk 0:02:36]} 7... Be7 {[%clk 0:02:49.3]} 8. Nf3 {[%clk 0:02:35.7]}
8... Ngf6 {[%clk 0:02:41.1]} 9. Qd3 {[%clk 0:02:22.6]} 9... Qa5 {[%clk 0:02:35]}
10. O-O-O {[%clk 0:02:19.1]} 10... e4 {[%clk 0:02:24.9]} 11. Nxe4 {[%clk
0:02:14.6]} 11... Qxa2 {[%clk 0:02:23.6]} 12. Nfd2 {[%clk 0:01:21.8]} 12... d5
{[%clk 0:01:43.3]} 13. Nc3 {[%clk 0:01:15.6]} 13... Qa1+ {[%clk 0:01:41.6]} 14.
Ncb1 {[%clk 0:01:14]} 14... Nb6 {[%clk 0:01:27.7]} 15. e4 {[%clk 0:01:11]} 15...
Be6 {[%clk 0:01:21.5]} 16. e5 {[%clk 0:00:47]} 16... Nfd7 {[%clk 0:01:19.2]} 17.
Bxe7 {[%clk 0:00:35.8]} 17... Kxe7 {[%clk 0:01:18.9]} 18. Qg3 {[%clk 0:00:28]}
18... Rag8 {[%clk 0:01:06.7]} 19. f4 {[%clk 0:00:21.8]} 19... g6 {[%clk
0:01:05.3]} 20. Bh3 {[%clk 0:00:17.6]} 20... Qa4 {[%clk 0:00:54.4]} 21. Nb3
{[%clk 0:00:13.8]} 21... Nc4 {[%clk 0:00:35.1]} 22. Nc3 {[%clk 0:00:13.5]} 22...
Qb4 {[%clk 0:00:35.2]} 23. Rdf1 {[%clk 0:00:11.1]} 23... a5 {[%clk 0:00:27]} 24.
Na2 {[%clk 0:00:04.4]} 24... Qb6 {[%clk 0:00:25.3]} 25. Qc3 {[%clk 0:00:02.4]}
25... Rxh4 {[%clk 0:00:19.5]} 26. Bxe6 {[%clk 0:00:02.1]} 26... Rxh1 {[%clk
0:00:19.8]} 27. Rxh1 {[%clk 0:00:02.8]} 27... Kxe6 {[%clk 0:00:18.1]} 28. Rh7
{[%clk 0:00:02.2]} 28... Ke7 {[%clk 0:00:15]} 29. Nd2 {[%clk 0:00:01.7]} 29...
Nxd2 {[%clk 0:00:14.3]} 30. Qxd2 {[%clk 0:00:02.6]} 30... Nf8 {[%clk 0:00:12.6]}
31. Rh6 {[%clk 0:00:02.1]} 31... Ne6 {[%clk 0:00:13]} 32. c3 {[%clk 0:00:01.4]}
32... Qb3 {[%clk 0:00:12.9]} 33. Kb1 {[%clk 0:00:01.2]} 33... a4 {[%clk
0:00:13.5]} 34. Nc1 {[%clk 0:00:01.7]} 34... Qb5 {[%clk 0:00:13.1]} 35. Ka2
{[%clk 0:00:02.3]} 35... Qc4+ {[%clk 0:00:12.9]} 36. Ka3 {[%clk 0:00:02.5]}
36... Qb5 {[%clk 0:00:13.8]} 37. Qc2 {[%clk 0:00:02.9]} 37... c5 {[%clk
0:00:13.8]} 38. Nd3 {[%clk 0:00:03.3]} 38... c4 {[%clk 0:00:13]} 39. Nb4 {[%clk
0:00:03.5]} 39... Nc7 {[%clk 0:00:13.2]} 40. Qg2 {[%clk 0:00:03.8]} 40... Qd7
{[%clk 0:00:13.2]} 41. Qg5+ {[%clk 0:00:04.1]} 41... Ke8 {[%clk 0:00:13.6]} 42.
f5 {[%clk 0:00:04.7]} 42... Nb5+ {[%clk 0:00:14.3]} 43. Kxa4 {[%clk 0:00:04.5]}
43... Nxc3+ {[%clk 0:00:13.5]} 44. Ka3 {[%clk 0:00:05]} 44... Qa4# {[%clk
0:00:13.7]} 0-1

[Event "*** Titled Tuesday Blitz"]
[Site "Chess.com"]
[Date "2020.11.03"]
[Round "5"]
[White "chessmachine14"]
[Black "Fins0905"]
[Result "0-1"]
[WhiteElo "2355"]
[BlackElo "2612"]
[TimeControl "180+1"]
[EndTime "10:59:03 PST"]
[Termination "Fins0905 won on time"]

1. e4 {[%clk 0:03:00.9]} 1... d5 {[%clk 0:02:55.8]} 2. exd5 {[%clk 0:03:00.3]}
2... Qxd5 {[%clk 0:02:56.7]} 3. Nc3 {[%clk 0:03:00.6]} 3... Qa5 {[%clk
0:02:56.6]} 4. Nf3 {[%clk 0:03:00.7]} 4... Nf6 {[%clk 0:02:56.2]} 5. d4 {[%clk
0:03:00.4]} 5... Bf5 {[%clk 0:02:55.8]} 6. Bc4 {[%clk 0:02:58]} 6... e6 {[%clk
0:02:55.6]} 7. Bd2 {[%clk 0:02:53.7]} 7... Bb4 {[%clk 0:02:54.9]} 8. a3 {[%clk
0:02:52.8]} 8... Bxc3 {[%clk 0:02:54.6]} 9. Bxc3 {[%clk 0:02:53.2]} 9... Qb6
{[%clk 0:02:55.3]} 10. Qe2 {[%clk 0:02:45.8]} 10... O-O {[%clk 0:02:44.8]} 11.
Ne5 {[%clk 0:02:32]} 11... Nc6 {[%clk 0:02:23.1]} 12. O-O-O {[%clk 0:02:28.7]}
12... Ne4 {[%clk 0:01:38.7]} 13. Nd7 {[%clk 0:01:18.8]} 13... Nxc3 {[%clk
0:01:36.1]} 14. bxc3 {[%clk 0:01:19.7]} 14... Qa5 {[%clk 0:01:36.4]} 15. Nxf8
{[%clk 0:01:18.1]} 15... Qxc3 {[%clk 0:01:04.4]} 16. g4 {[%clk 0:00:33.1]} 16...
Nxd4 {[%clk 0:00:37]} 17. Rxd4 {[%clk 0:00:32.7]} 17... Qa1+ {[%clk 0:00:28.2]}
18. Kd2 {[%clk 0:00:28.8]} 18... Qxd4+ {[%clk 0:00:29.1]} 19. Bd3 {[%clk
0:00:18.6]} 19... Bxd3 {[%clk 0:00:26.3]} 20. Qxd3 {[%clk 0:00:18.9]} 20...
Qxf2+ {[%clk 0:00:21.7]} 21. Kc3 {[%clk 0:00:18.9]} 21... Rxf8 {[%clk
0:00:20.9]} 22. Rf1 {[%clk 0:00:18.8]} 22... Qxh2 {[%clk 0:00:19.9]} 23. Kb3
{[%clk 0:00:09.7]} 23... Qd6 {[%clk 0:00:18.6]} 24. Qxd6 {[%clk 0:00:09.3]}
24... cxd6 {[%clk 0:00:18.7]} 25. Rd1 {[%clk 0:00:09.9]} 25... d5 {[%clk
0:00:17.4]} 26. c4 {[%clk 0:00:10.2]} 26... Rd8 {[%clk 0:00:14.1]} 27. cxd5
{[%clk 0:00:09.1]} 27... Rxd5 {[%clk 0:00:13.6]} 28. Rc1 {[%clk 0:00:08.8]}
28... g5 {[%clk 0:00:13.7]} 29. Rc7 {[%clk 0:00:08.6]} 29... Rb5+ {[%clk
0:00:11.8]} 30. Kc4 {[%clk 0:00:08]} 30... Rb6 {[%clk 0:00:11.4]} 31. a4 {[%clk
0:00:07.6]} 31... Rc6+ {[%clk 0:00:10.2]} 32. Rxc6 {[%clk 0:00:07.4]} 32... bxc6
{[%clk 0:00:11.1]} 33. Kc5 {[%clk 0:00:07.4]} 33... f5 {[%clk 0:00:11.7]} 34.
gxf5 {[%clk 0:00:06.3]} 34... exf5 {[%clk 0:00:12.1]} 35. Kxc6 {[%clk
0:00:06.3]} 35... g4 {[%clk 0:00:12.5]} 36. Kb7 {[%clk 0:00:06.7]} 36... g3
{[%clk 0:00:13]} 37. Kxa7 {[%clk 0:00:07.1]} 37... g2 {[%clk 0:00:13.6]} 38. a5
{[%clk 0:00:07.7]} 38... g1=Q+ {[%clk 0:00:14.1]} 39. Kb7 {[%clk 0:00:08.1]}
39... Qc5 {[%clk 0:00:13]} 40. a6 {[%clk 0:00:08.4]} 40... Qb5+ {[%clk
0:00:13.2]} 41. Ka7 {[%clk 0:00:08.3]} 41... f4 {[%clk 0:00:12.8]} 0-1

[Event "*** Titled Tuesday Blitz"]
[Site "Chess.com"]
[Date "2020.11.03"]
[Round "5"]
[White "Klavdia_Nik"]
[Black "guillembaches"]
[Result "1-0"]
[WhiteElo "2104"]
[BlackElo "2376"]
[TimeControl "180+1"]
[EndTime "10:59:06 PST"]
[Termination "Klavdia_Nik won on time"]

1. Nf3 {[%clk 0:03:00.9]} 1... d5 {[%clk 0:02:59.8]} 2. c4 {[%clk 0:03:01]} 2...
d4 {[%clk 0:02:58.8]} 3. b4 {[%clk 0:02:53]} 3... c5 {[%clk 0:02:58.1]} 4. bxc5
{[%clk 0:02:49.8]} 4... Nc6 {[%clk 0:02:56.8]} 5. d3 {[%clk 0:02:49.5]} 5... e5
{[%clk 0:02:55.6]} 6. g3 {[%clk 0:02:50.1]} 6... Bxc5 {[%clk 0:02:54.5]} 7. Bg2
{[%clk 0:02:50.7]} 7... Nf6 {[%clk 0:02:50.8]} 8. O-O {[%clk 0:02:51.2]} 8...
O-O {[%clk 0:02:50.5]} 9. Ba3 {[%clk 0:02:51.4]} 9... Bxa3 {[%clk 0:02:40.2]}
10. Nxa3 {[%clk 0:02:51.1]} 10... e4 {[%clk 0:02:36.9]} 11. Ne1 {[%clk
0:02:43.5]} 11... Re8 {[%clk 0:02:27.8]} 12. Qa4 {[%clk 0:02:23.2]} 12... e3
{[%clk 0:02:12.9]} 13. f3 {[%clk 0:02:12]} 13... h5 {[%clk 0:02:04.5]} 14. Qb5
{[%clk 0:01:50.6]} 14... Re5 {[%clk 0:01:55.4]} 15. Qb2 {[%clk 0:01:47.1]} 15...
h4 {[%clk 0:01:53]} 16. f4 {[%clk 0:01:46.6]} 16... Rh5 {[%clk 0:01:46.9]} 17.
Nf3 {[%clk 0:01:42.3]} 17... hxg3 {[%clk 0:01:46.2]} 18. hxg3 {[%clk 0:01:42.4]}
18... Rb8 {[%clk 0:01:06.5]} 19. Nb5 {[%clk 0:01:40.2]} 19... Bg4 {[%clk
0:00:59.5]} 20. Nbxd4 {[%clk 0:01:37.1]} 20... Nxd4 {[%clk 0:00:56.5]} 21. Qxd4
{[%clk 0:01:36.4]} 21... Qe7 {[%clk 0:00:49.3]} 22. Qxa7 {[%clk 0:01:30.7]}
22... Re8 {[%clk 0:00:42.8]} 23. Rab1 {[%clk 0:01:20]} 23... Qe6 {[%clk
0:00:31.6]} 24. Ng5 {[%clk 0:01:07.6]} 24... Qf5 {[%clk 0:00:21.5]} 25. Qxb7
{[%clk 0:01:03.4]} 25... Rxg5 {[%clk 0:00:11.2]} 26. fxg5 {[%clk 0:01:01.5]}
26... Qxg5 {[%clk 0:00:12.1]} 27. Rb5 {[%clk 0:00:44.9]} 27... Qh6 {[%clk
0:00:10]} 28. Re1 {[%clk 0:00:41.3]} 28... Bh3 {[%clk 0:00:08.7]} 29. Qf3 {[%clk
0:00:37.9]} 29... Ng4 {[%clk 0:00:06.5]} 30. Rb7 {[%clk 0:00:31.6]} 30... Rf8
{[%clk 0:00:03.3]} 31. Reb1 {[%clk 0:00:25.2]} 31... Bxg2 {[%clk 0:00:03.6]} 32.
Qxg2 {[%clk 0:00:24.4]} 32... Nf2 {[%clk 0:00:03]} 33. Re7 {[%clk 0:00:21.1]}
33... Nh3+ {[%clk 0:00:02.3]} 34. Kf1 {[%clk 0:00:20.3]} 34... Qf6+ {[%clk
0:00:02.6]} 35. Ke1 {[%clk 0:00:20.3]} 35... Qxe7 {[%clk 0:00:02.7]} 36. Qxh3
{[%clk 0:00:20.1]} 36... Qf6 {[%clk 0:00:03]} 37. Qg2 {[%clk 0:00:19.6]} 37...
Qc3+ {[%clk 0:00:03.1]} 38. Kf1 {[%clk 0:00:19.4]} 38... f5 {[%clk 0:00:03.7]}
39. Qd5+ {[%clk 0:00:18.1]} 39... Kh8 {[%clk 0:00:03.3]} 40. Kg2 {[%clk
0:00:18.7]} 40... Rf6 {[%clk 0:00:02]} 41. Qd8+ {[%clk 0:00:15.1]} 1-0

[Event "*** Titled Tuesday Blitz"]
[Site "Chess.com"]
[Date "2020.11.03"]
[Round "5"]
[White "ChronicUnhappiness"]
[Black "chenxiaoyuer"]
[Result "0-1"]
[WhiteElo "2353"]
[BlackElo "2498"]
[TimeControl "180+1"]
[EndTime "10:59:07 PST"]
[Termination "chenxiaoyuer won by checkmate"]

1. c4 {[%clk 0:03:00.9]} 1... Nf6 {[%clk 0:02:59.8]} 2. Nc3 {[%clk 0:02:58.2]}
2... g6 {[%clk 0:02:59.6]} 3. e4 {[%clk 0:02:56.9]} 3... d6 {[%clk 0:03:00]} 4.
d4 {[%clk 0:02:56.7]} 4... Bg7 {[%clk 0:02:59.8]} 5. Nf3 {[%clk 0:02:57.3]} 5...
O-O {[%clk 0:02:58.8]} 6. Be2 {[%clk 0:02:57.9]} 6... e5 {[%clk 0:02:57.5]} 7.
O-O {[%clk 0:02:58.1]} 7... Nc6 {[%clk 0:02:56.3]} 8. Be3 {[%clk 0:02:57.3]}
8... Re8 {[%clk 0:02:48.6]} 9. dxe5 {[%clk 0:02:44.3]} 9... dxe5 {[%clk
0:02:37.3]} 10. Qxd8 {[%clk 0:02:26]} 10... Rxd8 {[%clk 0:02:36.2]} 11. Nd5
{[%clk 0:02:21.4]} 11... Nxe4 {[%clk 0:02:08.9]} 12. Nxc7 {[%clk 0:01:59.5]}
12... Rb8 {[%clk 0:02:04.9]} 13. Rad1 {[%clk 0:01:46.9]} 13... Bg4 {[%clk
0:01:50.8]} 14. h3 {[%clk 0:01:45.3]} 14... Bxf3 {[%clk 0:01:44.5]} 15. Bxf3
{[%clk 0:01:45.5]} 15... Nd6 {[%clk 0:01:42]} 16. b3 {[%clk 0:01:28.5]} 16...
Nf5 {[%clk 0:01:24.8]} 17. Bxc6 {[%clk 0:01:03]} 17... bxc6 {[%clk 0:01:19.2]}
18. Bxa7 {[%clk 0:00:56]} 18... Rbc8 {[%clk 0:01:10.2]} 19. Bc5 {[%clk
0:00:39.1]} 19... Nd4 {[%clk 0:01:02.1]} 20. Na6 {[%clk 0:00:34.5]} 20... Bf8
{[%clk 0:00:39.2]} 21. Bxf8 {[%clk 0:00:21.5]} 21... Kxf8 {[%clk 0:00:40.1]} 22.
Nc5 {[%clk 0:00:21.8]} 22... Ra8 {[%clk 0:00:38.1]} 23. a4 {[%clk 0:00:20.6]}
23... Ke7 {[%clk 0:00:12.9]} 24. Rfe1 {[%clk 0:00:20.8]} 24... Kd6 {[%clk
0:00:12.6]} 25. Ne4+ {[%clk 0:00:18.9]} 25... Ke6 {[%clk 0:00:11.6]} 26. Nc5+
{[%clk 0:00:18.5]} 26... Kf6 {[%clk 0:00:07.5]} 27. f4 {[%clk 0:00:15.1]} 27...
exf4 {[%clk 0:00:05.5]} 28. Kf2 {[%clk 0:00:15.3]} 28... Nf5 {[%clk 0:00:04.2]}
29. Nd7+ {[%clk 0:00:13.9]} 29... Kg7 {[%clk 0:00:04.3]} 30. Ne5 {[%clk
0:00:13.7]} 30... Ne3 {[%clk 0:00:04.1]} 31. Rxd8 {[%clk 0:00:12.9]} 31... Rxd8
{[%clk 0:00:05]} 32. Nxc6 {[%clk 0:00:12.5]} 32... Rd3 {[%clk 0:00:05.5]} 33. b4
{[%clk 0:00:11.3]} 33... Nxc4 {[%clk 0:00:04.8]} 34. a5 {[%clk 0:00:08.7]} 34...
Rd2+ {[%clk 0:00:02.7]} 35. Re2 {[%clk 0:00:08.3]} 35... Rd1 {[%clk 0:00:03.3]}
36. Ra2 {[%clk 0:00:07.3]} 36... Ne3 {[%clk 0:00:03.7]} 37. a6 {[%clk
0:00:05.6]} 37... Rf1+ {[%clk 0:00:03.7]} 38. Ke2 {[%clk 0:00:05.8]} 38... Rg1
{[%clk 0:00:04.6]} 39. Kd3 {[%clk 0:00:05.5]} 39... Rd1+ {[%clk 0:00:04.3]} 40.
Ke4 {[%clk 0:00:04]} 40... g5 {[%clk 0:00:04.2]} 41. a7 {[%clk 0:00:03.5]} 41...
f5+ {[%clk 0:00:04.4]} 42. Ke5 {[%clk 0:00:03]} 42... Kf7 {[%clk 0:00:04.6]} 43.
a8=Q {[%clk 0:00:02.7]} 43... Rd5# {[%clk 0:00:04.1]} 0-1